bitfinex/quotes_BTCUSD_20251217
["timestamp","ask_amount","ask_price","bid_price","bid_amount"]
[1765985719480,0.00161287,89859.0,89853.0,0.01112928]
[1765985719706,0.00161287,89859.0,89850.0,1.001]
[1765985720108,0.01112705,89871.0,89857.0,0.01112879]
[1765985720309,0.01112705,89871.0,89853.0,0.48668]
[1765985720310,0.2225546,89866.0,89853.0,0.48668]
[1765985720529,0.00161287,89871.0,89850.0,1.01212966]
[1765985720530,0.00161287,89871.0,89856.0,0.23370588]
[1765985720716,0.00161287,89871.0,89854.0,0.49780916]
[1765985720915,0.01112532,89885.0,89869.0,0.0111273]
[1765985721118,0.01112582,89881.0,89866.0,0.48668]
[1765985721340,0.22254648,89869.0,89861.0,0.01784]
[1765985721542,0.23367378,89869.0,89861.0,0.01784]
[1765985721768,0.01112767,89866.0,89849.0,0.23372369]
[1765985721967,0.01112705,89871.0,89851.0,0.01784]
[1765985722141,0.0111273,89869.0,89856.0,0.01112891]
[1765985722338,0.23366602,89872.0,89859.0,0.01112854]
[1765985722339,0.01112693,89872.0,89859.0,0.01112854]
[1765985722564,0.01112507,89887.0,89872.0,0.01112693]
[1765985722770,0.22249144,89892.0,89876.0,0.01112644]
[1765985722922,0.01112545,89884.0,89868.0,0.01112743]
[1765985723117,0.2907,89884.0,89870.0,0.22254249]
[1765985723323,0.2907,89884.0,89868.0,0.48668]
[1765985723324,0.48202,89896.0,89883.0,0.01112557]
[1765985723565,0.0111247,89890.0,89874.0,0.01784]
[1765985723808,0.01112557,89883.0,89875.0,0.01784]
[1765985724008,0.01112582,89881.0,89876.0,0.01784]
[1765985724210,0.001,89887.0,89876.0,0.50452]
[1765985724384,0.001,89887.0,89884.0,0.23363424]
[1765985724587,0.01112408,89895.0,89881.0,0.48668]
[1765985724785,0.01112408,89895.0,89877.0,0.01112631]
[1765985724786,0.01112433,89893.0,89874.0,0.23366019]
[1765985724986,2.87e-06,89893.0,89881.0,0.01112582]
[1765985725211,0.0111247,89890.0,89876.0,0.01945]
[1765985725392,0.01112483,89889.0,89876.0,0.01945]
[1765985725591,0.01112495,89888.0,89876.0,0.01945]
[1765985725790,0.22250916,89884.0,89876.0,0.01945]
[1765985725991,0.01112557,89883.0,89876.0,0.01945]
[1765985726193,0.01112507,89887.0,89876.0,0.01945]
[1765985726395,0.0111247,89890.0,89876.0,0.03057644]
[1765985726592,2.87e-06,89893.0,89882.0,0.01112569]
[1765985726793,2.87e-06,89893.0,89884.0,0.01112545]
[1765985726993,2.87e-06,89893.0,89886.0,0.0111252]
[1765985727213,0.2224625,89903.0,89889.0,0.01112483]
[1765985727411,0.01112309,89903.0,89889.0,0.00161]
[1765985727774,0.01112285,89905.0,89889.0,0.00161]
[1765985727990,0.0111252,89886.0,89879.0,0.01784]
[1765985728204,0.22254892,89869.0,89866.0,0.02798623]
[1765985728355,0.22254892,89869.0,89851.0,0.01112953]
[1765985728356,0.01112743,89868.0,89851.0,0.01112953]
[1765985728557,0.01112743,89868.0,89852.0,0.01112941]
[1765985728752,0.23369277,89862.0,89851.0,0.2907]
[1765985728961,0.2225666,89861.0,89849.0,0.01784]
[1765985729141,0.2336943,89862.0,89849.0,0.01784]
[1765985729341,0.01112792,89864.0,89851.0,0.30182953]
[1765985729543,0.01112817,89862.0,89851.0,0.2907]
[1765985729745,0.23369336,89862.0,89851.0,0.2907]
[1765985729979,0.0111273,89869.0,89854.0,0.01112916]
[1765985730281,0.01112805,89863.0,89851.0,0.2907]
[1765985730457,0.22256662,89861.0,89851.0,0.2907]
[1765985730660,0.22256662,89861.0,89859.0,4.5e-06]
[1765985730860,0.22256729,89861.0,89859.0,4.5e-06]
[1765985731068,0.22256843,89860.0,89859.0,4.5e-06]
[1765985731248,0.01112817,89862.0,89859.0,4.5e-06]
[1765985731249,0.22256596,89861.0,89859.0,4.5e-06]
[1765985731610,0.22256596,89861.0,89838.0,0.22262164]
[1765985731611,0.65104073,89851.0,89850.0,4.5e-06]
[1765985731769,0.22259073,89851.0,89850.0,4.5e-06]
[1765985732315,0.65104073,89851.0,89850.0,4.5e-06]
[1765985732518,1.06441073,89851.0,89850.0,4.5e-06]
[1765985733291,1.08225073,89851.0,89850.0,4.5e-06]
[1765985733539,1.08625073,89851.0,89850.0,4.5e-06]
[1765985734323,0.02184,89851.0,89850.0,4.5e-06]
[1765985734538,0.53513073,89851.0,89850.0,4.5e-06]
[1765985734757,0.51329073,89851.0,89850.0,4.5e-06]
[1765985734968,0.92666073,89851.0,89850.0,4.5e-06]
[1765985735239,0.51629073,89851.0,89850.0,4.5e-06]
[1765985735400,0.2907,89851.0,89850.0,4.5e-06]
[1765985735600,0.0280326,89878.0,89850.0,4.5e-06]
[1765985735601,0.01112656,89875.0,89857.0,0.01112879]
[1765985735806,0.2336745,89869.0,89858.0,0.97331]
[1765985735992,0.22254815,89869.0,89858.0,0.00161]
[1765985736190,0.41337,89865.0,89833.0,0.01113176]
[1765985736396,0.2225793,89856.0,89839.0,0.30183102]
[1765985736635,0.01976,89874.0,89845.0,0.22260559]
[1765985736636,0.01112792,89864.0,89845.0,0.22260559]
[1765985736840,0.01112879,89857.0,89845.0,0.00161]
[1765985737048,0.01976,89868.0,89845.0,0.00161]
[1765985737221,0.01112693,89872.0,89864.0,0.2907]
[1765985737421,0.01976,89890.0,89864.0,0.29231]
[1765985737621,0.05001839,89877.0,89835.0,0.23376082]
[1765985737819,0.97433349,89880.0,89836.0,0.48663]
[1765985737820,0.01113077,89841.0,89836.0,0.48663]
[1765985738024,0.01784,89848.0,89788.0,0.01113734]
[1765985738234,0.00099999,89860.0,89780.0,0.48663]
[1765985738235,0.01113,89829.0,89780.0,0.48663]
[1765985738440,0.01113585,89800.0,89783.0,0.48663]
[1765985738691,0.01113585,89800.0,89776.0,0.22277593]
[1765985738692,0.01113809,89782.0,89760.0,0.00119999]
[1765985738892,0.23389428,89785.0,89763.0,0.01114044]
[1765985739094,0.43197,89787.0,89763.0,0.00161]
[1765985739468,0.01113635,89796.0,89779.0,0.2907]
[1765985739670,0.0111361,89798.0,89780.0,0.01113833]
[1765985739822,0.0111366,89794.0,89780.0,0.00161]
[1765985740021,0.01113759,89786.0,89780.0,0.00161]
[1765985740228,0.01113858,89778.0,89764.0,0.48663]
[1765985740394,0.0111397,89769.0,89764.0,0.00161]
[1765985740592,0.22280305,89766.0,89746.0,0.01114255]
[1765985740804,0.44310957,89770.0,89748.0,0.0111423]
[1765985741007,0.01114019,89765.0,89747.0,0.01114243]
[1765985741201,0.01114168,89753.0,89738.0,0.01114355]
[1765985741401,0.23395982,89759.0,89741.0,0.01114317]
[1765985741612,0.01114119,89757.0,89741.0,0.01114317]
[1765985741803,0.2228088,89764.0,89747.0,0.48707]
[1765985741804,0.01114044,89763.0,89747.0,0.48707]
[1765985742191,0.22281888,89759.0,89747.0,0.48707]
[1765985742355,0.01114106,89758.0,89747.0,0.48707]
[1765985742522,0.01114144,89755.0,89741.0,0.48707]
[1765985742868,0.01114168,89753.0,89741.0,0.001]
[1765985743098,0.01114342,89739.0,89730.0,0.48707]
[1765985743285,0.0111428,89744.0,89730.0,0.48707]
[1765985743286,0.01114293,89743.0,89730.0,0.48707]
[1765985743507,0.01788,89761.0,89731.0,0.2907]
[1765985743721,0.01788,89761.0,89728.0,0.47682]
[1765985743722,0.01114404,89734.0,89719.0,0.49821591]
[1765985743922,0.01114243,89747.0,89724.0,0.01114529]
[1765985744118,0.2340214,89736.0,89720.0,0.30184578]
[1765985744341,0.01114404,89734.0,89719.0,0.48707]
[1765985744719,0.01275691,89734.0,89720.0,0.2907]
[1765985744929,0.01114479,89728.0,89719.0,0.48707]
[1765985745139,0.01114429,89732.0,89718.0,0.0004]
[1765985745541,0.01114417,89733.0,89718.0,0.0004]
[1765985745745,0.01275691,89734.0,89719.0,0.001]
[1765985745988,0.00161287,89734.0,89728.0,0.01114479]
[1765985746225,0.00161287,89734.0,89720.0,0.22291423]
[1765985746226,0.00161287,89734.0,89718.0,0.0004]
[1765985746533,0.01114566,89721.0,89718.0,0.0024]
[1765985746703,0.01114417,89733.0,89718.0,0.0024]
[1765985746917,0.01114466,89729.0,89718.0,0.0024]
[1765985747065,0.22290374,89725.0,89718.0,0.0024]
[1765985747272,0.01114479,89728.0,89708.0,0.01114727]
[1765985747475,0.23404115,89728.0,89712.0,0.01114678]
[1765985747669,0.01114491,89727.0,89712.0,0.01114678]
[1765985747952,0.6745707,89718.0,89679.0,0.48707]
[1765985748161,0.6745707,89718.0,89675.0,0.47702]
[1765985748162,0.6745707,89718.0,89675.0,0.01135137]
[1765985748163,1.03316909,89718.0,89675.0,0.01135137]
[1765985748332,0.45165,89692.0,89659.0,0.48707]
[1765985748571,0.45165,89692.0,89650.0,0.71178925]
[1765985748572,0.01114876,89696.0,89670.0,0.47682]
[1765985748773,0.02902876,89696.0,89678.0,0.011151]
[1765985748973,0.01115075,89680.0,89672.0,0.2907]
[1765985749183,0.45165,89693.0,89671.0,0.01115187]
[1765985749372,0.01114876,89696.0,89679.0,0.00542133]
[1765985749511,0.01114914,89693.0,89675.0,0.01115137]
[1765985749711,0.01115137,89675.0,89657.0,0.48707]
[1765985749924,0.01115187,89671.0,89658.0,0.48707]
[1765985750124,0.01115262,89665.0,89650.0,0.71178925]
[1765985750322,0.01788,89679.0,89651.0,0.2907]
[1765985750323,0.22306988,89658.0,89651.0,0.2907]
[1765985750551,0.01115336,89659.0,89651.0,0.2907]
[1765985750723,0.45165,89670.0,89651.0,0.2907]
[1765985750921,0.22304316,89669.0,89651.0,0.2907]
[1765985751112,0.01115162,89673.0,89655.0,0.01115386]
[1765985751307,0.45165,89670.0,89650.0,0.71178925]
[1765985751586,0.23422972,89656.0,89650.0,0.71178925]
[1765985751766,0.01115361,89657.0,89650.0,0.71178925]
[1765985751914,0.23423804,89653.0,89650.0,0.71178925]
[1765985752109,0.2230873,89651.0,89650.0,0.71178925]
[1765985752310,0.00161287,89651.0,89650.0,0.71178925]
[1765985752552,0.00161287,89651.0,89650.0,0.71808605]
[1765985752753,0.00161287,89651.0,89650.0,0.66808605]
[1765985752754,0.40376287,89651.0,89650.0,0.66808605]
[1765985752956,0.40376287,89651.0,89650.0,0.11363691]
[1765985753273,0.40376287,89651.0,89614.0,0.22317779]
[1765985753274,0.01115735,89627.0,89605.0,0.22320017]
[1765985753474,0.01115735,89627.0,89570.0,0.00099999]
[1765985753475,0.01788,89633.0,89613.0,0.70000158]
[1765985753783,0.23427635,89638.0,89613.0,0.00161]
[1765985753784,0.01115785,89623.0,89613.0,0.00161]
[1765985753986,0.22314953,89626.0,89613.0,0.00161]
[1765985754190,2.87e-06,89627.0,89613.0,0.00161]
[1765985754430,2.87e-06,89627.0,89614.0,0.47682]
[1765985754600,2.87e-06,89627.0,89619.0,0.01115834]
[1765985754811,2.87e-06,89627.0,89615.0,0.22317692]
[1765985755015,2.87e-06,89627.0,89615.0,0.17347]
[1765985755372,0.23432228,89621.0,89615.0,0.17347]
[1765985755570,0.23432792,89618.0,89615.0,0.17347]
[1765985755772,0.01115996,89606.0,89599.0,0.48707]
[1765985755973,0.01116058,89601.0,89588.0,0.48707]
[1765985756200,0.01116158,89593.0,89580.0,0.47682]
[1765985756412,0.01116108,89597.0,89588.0,0.00161]
[1765985756568,0.01116183,89591.0,89588.0,0.00161]
[1765985756763,0.01116146,89594.0,89588.0,0.00161]
[1765985756966,0.01115822,89620.0,89603.0,0.47682]
[1765985757193,0.2907,89618.0,89603.0,0.00161]
[1765985757395,0.22316447,89620.0,89603.0,0.00161]
[1765985757617,0.01115909,89613.0,89603.0,0.00161]
[1765985757815,0.01115909,89613.0,89562.0,0.05590493]
[1765985757816,0.34071839,89612.0,89562.0,0.05590493]
[1765985758018,0.34071839,89612.0,89540.0,0.00099999]
[1765985758019,0.2907,89596.0,89572.0,0.00161]
[1765985758242,0.01116308,89581.0,89578.0,0.47682]
[1765985758441,0.01116283,89583.0,89575.0,0.01792]
[1765985758698,0.0111622,89588.0,89575.0,0.01792]
[1765985758699,0.2907,89588.0,89575.0,0.01953]
[1765985758892,0.01116345,89578.0,89575.0,0.01953]
[1765985759105,0.23441008,89587.0,89575.0,0.01953]
[1765985759308,0.2907,89593.0,89575.0,0.01953]
[1765985759461,0.23442612,89581.0,89575.0,0.01953]
[1765985759661,0.01116233,89587.0,89568.0,0.0111647]
[1765985759845,0.01116183,89591.0,89571.0,0.01116432]
[1765985760044,0.01116333,89579.0,89567.0,0.07361945]
[1765985760244,0.00100104,89579.0,89567.0,0.07423127]
[1765985760548,0.2907,89599.0,89578.0,0.00061182]
[1765985760795,0.29170104,89599.0,89580.0,0.47682]
[1765985760994,0.02715,89616.0,89579.0,0.48707]
[1765985760995,0.01115921,89612.0,89598.0,0.00061182]
[1765985761234,0.66965534,89610.0,89589.0,0.01792]
[1765985761420,0.00100104,89610.0,89586.0,0.05868182]
[1765985761620,0.01116121,89596.0,89584.0,0.30862]
[1765985761824,0.00100104,89610.0,89594.0,0.2907]
[1765985762037,1.04e-06,89610.0,89598.0,0.2907]
[1765985762249,0.11492016,89641.0,89609.0,0.00100001]
[1765985762393,0.01115971,89608.0,89601.0,0.2907]
[1765985762593,0.01116034,89603.0,89589.0,0.2907]
[1765985762796,0.01116171,89592.0,89589.0,0.2907]
[1765985763021,2.85e-06,89592.0,89583.0,0.01792]
[1765985763262,0.22324368,89589.0,89583.0,0.00161001]
[1765985763451,0.05001839,89609.0,89577.0,0.01792]
[1765985763609,0.05001839,89615.0,89588.0,0.00161001]
[1765985763816,0.2907,89592.0,89588.0,0.00161001]
[1765985764030,0.01116245,89586.0,89580.0,0.00099999]
[1765985764204,0.01116245,89586.0,89565.0,0.48707]
[1765985764205,0.66965534,89600.0,89538.0,0.0555207]
[1765985764206,0.01116632,89555.0,89538.0,0.0555207]
[1765985764404,0.01116644,89554.0,89540.0,0.05509205]
[1765985764609,0.01116357,89577.0,89557.0,0.01116607]
[1765985764820,0.01792,89580.0,89564.0,0.0111652]
[1765985765017,0.2907,89584.0,89564.0,0.00161001]
[1765985765214,0.2907,89575.0,89564.0,0.00161001]
[1765985765444,0.01116644,89554.0,89532.0,0.22338367]
[1765985765642,0.01116707,89549.0,89538.0,0.01792]
[1765985765861,0.45969,89559.0,89538.0,0.01792]
[1765985766039,0.01116619,89556.0,89538.0,0.01792]
[1765985766243,0.01116694,89550.0,89538.0,0.01792]
[1765985766459,0.49177,89557.0,89538.0,0.01953001]
[1765985766662,0.22333658,89551.0,89549.0,0.0011177]
[1765985766867,0.01116856,89537.0,89516.0,0.01117118]
[1765985767041,0.22338381,89532.0,89523.0,0.00161001]
[1765985767243,0.01117056,89521.0,89513.0,0.0002]
[1765985767444,0.01117118,89516.0,89513.0,0.00181001]
[1765985767757,0.01117118,89516.0,89500.0,10.51233]
[1765985767758,0.0111728,89503.0,89500.0,8.89408474]
[1765985767958,0.2907,89511.0,89500.0,8.89408474]
[1765985767959,0.01116919,89532.0,89511.0,0.01117181]
[1765985768186,0.001,89537.0,89531.0,0.00161001]
[1765985768387,0.001,89537.0,89531.0,1e-08]
[1765985768735,0.01116869,89536.0,89531.0,1e-08]
[1765985768958,0.01216856,89537.0,89531.0,1e-08]
[1765985769159,0.001,89537.0,89531.0,1e-08]
[1765985769499,0.001,89537.0,89520.0,0.00099999]
[1765985769500,0.01116869,89536.0,89520.0,0.00099999]
[1765985769716,0.22337882,89534.0,89520.0,0.00099999]
[1765985770038,0.01116856,89537.0,89500.0,8.84408474]
[1765985770039,0.001,89516.0,89505.0,0.01796]
[1765985770214,0.23459028,89518.0,89500.0,8.84408474]
[1765985770426,0.22335305,89545.0,89521.0,0.01117056]
[1765985770596,0.01116919,89532.0,89519.0,0.01796]
[1765985770799,0.01116644,89554.0,89527.0,0.22339566]
[1765985771001,0.01116607,89557.0,89541.0,0.05001839]
[1765985771212,0.01116769,89544.0,89541.0,0.05001839]
[1765985771387,0.01117006,89525.0,89510.0,0.00099999]
[1765985771591,0.2907,89526.0,89511.0,0.05001839]
[1765985771790,0.01117018,89524.0,89521.0,0.05001839]
[1765985772019,0.29231286,89526.0,89509.0,0.01796]
[1765985772020,0.01117118,89516.0,89509.0,0.01796]
[1765985772353,0.48991,89528.0,89500.0,8.84408474]
[1765985772354,0.22345977,89502.0,89500.0,8.84408474]
[1765985772665,0.78222286,89501.0,89500.0,7.47086973]
[1765985772874,0.78222286,89501.0,89500.0,7.15536786]
[1765985773081,2.78222286,89501.0,89500.0,6.99426458]
[1765985773243,2.78222286,89501.0,89500.0,6.67457376]
[1765985773464,2.78222286,89501.0,89500.0,6.18997812]
[1765985773661,2.78222286,89501.0,89500.0,5.66709687]
[1765985773839,2.78222286,89501.0,89500.0,5.52537116]
[1765985774022,2.87080053,89501.0,89500.0,5.204611]
[1765985774222,2.90321122,89501.0,89500.0,4.23026201]
[1765985774485,2.84330601,89501.0,89500.0,4.22926201]
[1765985774686,2.80422286,89501.0,89500.0,3.44716757]
[1765985774919,2.78622286,89501.0,89500.0,3.44716757]
[1765985775090,2.78622286,89501.0,89500.0,3.10509574]
[1765985775091,2.83624125,89501.0,89500.0,3.10509574]
[1765985775414,2.80022286,89501.0,89500.0,3.10509574]
[1765985775616,2.9923292,89501.0,89500.0,1.86977064]
[1765985775835,2.9923292,89501.0,89500.0,0.07687973]
[1765985775836,2.88666551,89501.0,89500.0,0.07687973]
[1765985776005,2.88666551,89501.0,89397.0,0.018]
[1765985776006,0.01118167,89432.0,89397.0,0.018]
[1765985776243,0.0111823,89427.0,89401.0,0.46863]
[1765985776442,0.01118218,89428.0,89395.0,0.49026]
[1765985776645,0.0111833,89419.0,89387.0,0.0111873]
[1765985776775,0.0111833,89419.0,89383.0,0.02662717]
[1765985776776,0.01118518,89404.0,89384.0,0.49026]
[1765985776979,0.018,89418.0,89392.0,0.49026]
[1765985776980,0.1149186,89418.0,89392.0,0.49026]
[1765985777207,0.01118355,89417.0,89400.0,0.2907]
[1765985777527,0.01118355,89417.0,89385.0,0.05168872]
[1765985777528,0.0111848,89407.0,89385.0,0.54194872]
[1765985777697,0.22368923,89410.0,89388.0,0.01118718]
[1765985777698,0.6726172,89410.0,89388.0,0.01118718]
[1765985777901,0.22368362,89414.0,89389.0,0.49026]
[1765985778100,0.0111858,89399.0,89362.0,0.01119043]
[1765985778300,0.0111873,89387.0,89363.0,0.49026]
[1765985778619,0.018,89400.0,89368.0,0.49026]
[1765985778620,0.01118705,89389.0,89368.0,0.49026]
[1765985778835,0.50109655,89393.0,89363.0,0.50826]
[1765985779031,0.05581265,89408.0,89363.0,0.50826]
[1765985779032,0.22371805,89399.0,89366.0,0.2907]
[1765985779289,0.22371805,89399.0,89363.0,0.49782031]
[1765985779290,0.01118555,89401.0,89395.0,0.001]
[1765985779487,0.018,89408.0,89343.0,0.01119281]
[1765985779488,0.01118831,89379.0,89343.0,0.01119281]
[1765985779688,0.48991,89373.0,89343.0,0.018]
[1765985779817,0.002,89389.0,89371.0,0.01118931]
[1765985780021,0.018,89404.0,89372.0,0.49026]
[1765985780218,0.018,89404.0,89371.0,0.0234989]
[1765985780219,0.48991,89393.0,89371.0,0.0234989]
[1765985780449,0.48991,89393.0,89361.0,0.01119056]
[1765985780450,0.004,89401.0,89361.0,0.46863]
[1765985780647,0.22367492,89416.0,89344.0,0.0554812]
[1765985780648,0.50109343,89418.0,89383.0,0.49026]
[1765985780875,0.01804,89425.0,89382.0,0.01804]
[1765985780876,0.00161286,89401.0,89382.0,0.01804]
[1765985781055,0.00161286,89401.0,89371.0,0.77051931]
[1765985781056,0.01118743,89386.0,89353.0,0.01119156]
[1765985781374,0.48991,89374.0,89354.0,0.01804]
[1765985781515,0.48991,89370.0,89355.0,0.06951934]
[1765985781719,0.49152286,89370.0,89344.0,0.01804]
[1765985781938,0.49152286,89370.0,89340.0,0.69715345]
[1765985781939,0.48991,89367.0,89340.0,0.69715345]
[1765985782144,0.48991,89367.0,89339.0,0.02923331]
[1765985782145,0.00161286,89367.0,89364.0,1.8e-07]
[1765985782342,0.48991,89387.0,89366.0,0.00405812]
[1765985782565,0.0111863,89395.0,89365.0,0.49026]
[1765985782743,0.01279916,89395.0,89366.0,0.05014507]
[1765985782965,0.01279916,89395.0,89371.0,0.49026]
[1765985783167,0.0111863,89395.0,89366.0,0.15014507]
[1765985783380,0.00161286,89395.0,89374.0,0.2237781]
[1765985783623,0.01118443,89410.0,89374.0,0.2237781]
[1765985783624,0.01804,89415.0,89381.0,0.72520696]
[1765985783870,0.01804,89415.0,89384.0,0.01118768]
[1765985784056,0.01804,89415.0,89384.0,0.00161287]
[1765985784262,0.01118468,89408.0,89384.0,0.00161287]
[1765985784448,0.01118555,89401.0,89384.0,0.00061287]
[1765985784590,0.01118593,89398.0,89384.0,0.00061286]
[1765985784789,0.23485832,89416.0,89384.0,0.00061286]
[1765985785044,0.2907,89413.0,89384.0,0.00061286]
[1765985785251,0.0111823,89427.0,89392.0,0.49026]
[1765985785550,0.0111823,89427.0,89393.0,0.01804]
[1765985785551,0.2907,89417.0,89393.0,0.01804]
[1765985785791,0.2907,89417.0,89385.0,0.01118755]
[1765985785792,0.01118655,89393.0,89354.0,0.01119144]
[1765985785988,0.01118655,89393.0,89322.0,0.05556522]
[1765985785989,0.01118806,89381.0,89366.0,0.10061286]
[1765985786164,0.01118956,89369.0,89366.0,0.1]
[1765985786474,0.74133342,89367.0,89366.0,0.05]
[1765985786676,0.22479625,89367.0,89366.0,0.05]
[1765985786971,0.001,89367.0,89366.0,0.05]
[1765985787210,0.49091,89367.0,89366.0,0.05]
[1765985787411,0.001,89367.0,89352.0,0.49026]
[1765985787711,0.001,89381.0,89364.0,0.01180322]
[1765985787924,0.50109405,89413.0,89380.0,0.00061286]
[1765985788044,0.02662717,89417.0,89387.0,0.49026]
[1765985788240,0.01118593,89398.0,89387.0,0.00061286]
[1765985788475,0.0111848,89407.0,89379.0,0.95889]
[1765985788902,0.00038,89426.0,89385.0,0.01118755]
[1765985788903,0.2907,89411.0,89385.0,0.01118755]
[1765985789111,0.01118343,89418.0,89390.0,0.69715345]
[1765985789282,0.01118343,89418.0,89379.0,0.95889]
[1765985789283,0.0111843,89411.0,89391.0,0.01808]
[1765985789477,0.30188418,89412.0,89391.0,0.01808]
[1765985789701,0.01118405,89413.0,89389.0,0.01808]
[1765985789859,0.2907,89414.0,89389.0,0.01808]
[1765985790061,0.01118455,89409.0,89389.0,0.01808]
[1765985790265,0.01118393,89414.0,89389.0,0.01808]
[1765985790467,0.001,89411.0,89389.0,0.01808]
[1765985790667,0.1149186,89429.0,89400.0,0.69715345]
[1765985790865,0.0111823,89427.0,89400.0,0.69715345]
[1765985791091,0.00161,89427.0,89399.0,0.2237155]
[1765985791462,0.00161,89427.0,89399.0,1.19379045]
[1765985791624,0.22353611,89471.0,89426.0,0.00161287]
[1765985791800,2.0,89473.0,89449.0,0.01117955]
[1765985791998,0.02662717,89476.0,89449.0,0.01117955]
[1765985791999,0.02662717,89476.0,89454.0,0.49026]
[1765985792216,0.03358971,89515.0,89475.0,0.00161287]
[1765985792217,0.01117355,89497.0,89475.0,0.00161287]
[1765985792406,0.01117318,89500.0,89475.0,0.00161287]
[1765985792583,0.01117305,89501.0,89475.0,0.00161287]
[1765985792768,0.01117368,89496.0,89475.0,0.00161287]
[1765985792975,0.01117368,89496.0,89467.0,0.49026]
[1765985792976,0.01117468,89488.0,89473.0,0.01808]
[1765985793180,0.002,89476.0,89472.0,0.01808]
[1765985793435,0.002,89476.0,89473.0,0.00161287]
[1765985793604,0.02662717,89503.0,89473.0,0.00161287]
[1765985793605,0.14096826,89503.0,89473.0,0.00161287]
[1765985793804,0.22348712,89491.0,89473.0,0.00161287]
[1765985794006,0.22348616,89491.0,89473.0,0.00161287]
[1765985794188,0.0111748,89487.0,89473.0,0.00161287]
[1765985794385,0.23467826,89485.0,89473.0,0.00161287]
[1765985794681,0.23467826,89485.0,89447.0,0.0111798]
[1765985794682,0.41092,89476.0,89440.0,0.69715345]
[1765985794864,0.22356297,89461.0,89441.0,0.11546078]
[1765985795070,0.01117793,89462.0,89441.0,0.00161287]
[1765985795673,0.03780247,89483.0,89450.0,1.16578345]
[1765985795848,0.001,89476.0,89472.0,0.002]
[1765985796035,0.0111763,89475.0,89454.0,0.01808]
[1765985796234,0.223538,89471.0,89450.0,0.00161287]
[1765985796434,0.40892,89480.0,89450.0,0.00161287]
[1765985796435,0.001,89462.0,89450.0,0.00161287]
[1765985796632,0.01117655,89473.0,89450.0,0.69876632]
[1765985796832,0.02662717,89483.0,89450.0,0.69876632]
[1765985796833,0.02662717,89466.0,89451.0,0.07168463]
[1765985797043,0.02662717,89466.0,89450.0,0.00161287]
[1765985797248,0.01117793,89462.0,89450.0,0.00161287]
[1765985797457,0.47703,89477.0,89450.0,0.00161287]
[1765985797458,0.00196995,89500.0,89450.0,0.00161287]
[1765985797675,0.0111768,89471.0,89450.0,0.00161287]
[1765985797875,0.02662717,89468.0,89450.0,0.00161287]
[1765985798300,0.0111768,89471.0,89450.0,0.00161287]
[1765985798514,0.47703,89465.0,89432.0,0.01808]
[1765985798704,0.01117718,89468.0,89450.0,0.001]
[1765985798908,0.22353142,89473.0,89450.0,0.00261287]
[1765985798909,0.22353112,89473.0,89450.0,0.00261287]
[1765985799146,0.47703,89475.0,89450.0,0.00161287]
[1765985799147,0.0111763,89475.0,89450.0,0.00161287]
[1765985799349,0.0111763,89475.0,89451.0,0.07790229]
[1765985799559,0.0111763,89475.0,89474.0,0.00078645]
[1765985799826,0.01117768,89464.0,89451.0,0.07790229]
[1765985800014,0.48820643,89474.0,89447.0,0.2907]
[1765985800246,0.001,89475.0,89447.0,0.76094287]
[1765985800663,0.01117768,89464.0,89447.0,0.47024287]
[1765985800871,0.02662717,89469.0,89447.0,0.47024287]
[1765985800872,0.01117705,89469.0,89447.0,0.47024287]
[1765985801112,0.01117568,89480.0,89448.0,0.50301967]
[1765985801334,0.01117755,89465.0,89437.0,0.2907]
[1765985801569,0.0111793,89451.0,89433.0,0.01808]
[1765985801784,0.01117955,89449.0,89431.0,0.2907]
[1765985801985,0.02662717,89455.0,89430.0,0.71523345]
[1765985801986,0.0111798,89447.0,89430.0,0.71523345]
[1765985802188,0.01118042,89442.0,89431.0,0.01808]
[1765985802421,0.01118117,89436.0,89432.0,0.07152334]
[1765985802630,0.11434109,89426.0,89407.0,0.01808]
[1765985802851,0.11434109,89430.0,89411.0,0.2907]
[1765985803074,0.01118305,89421.0,89410.0,0.69715345]
[1765985803287,0.11434109,89430.0,89410.0,0.01808]
[1765985803288,0.01118243,89426.0,89410.0,0.01808]
[1765985803498,0.11434109,89430.0,89410.0,0.01808]
[1765985803702,0.02662717,89422.0,89410.0,0.71523345]
[1765985803941,0.02662717,89422.0,89411.0,0.36222335]
[1765985804174,0.11434109,89430.0,89411.0,0.36222335]
[1765985804725,0.02662717,89425.0,89411.0,0.36222335]
[1765985804926,0.02662717,89425.0,89400.0,0.11546078]
[1765985804927,0.02824004,89425.0,89391.0,0.94248]
[1765985805128,0.01118092,89438.0,89411.0,0.49184]
[1765985805466,0.11434109,89447.0,89400.0,0.69715345]
[1765985805467,0.22366966,89418.0,89400.0,0.69715345]
[1765985805795,0.01808,89444.0,89365.0,0.49184]
[1765985805796,0.0753,89410.0,89365.0,0.49184]
[1765985805939,0.01118831,89379.0,89346.0,0.45064]
[1765985806142,0.01118856,89377.0,89342.0,0.49184]
[1765985806344,0.11434109,89387.0,89360.0,0.69715345]
[1765985806550,0.12552839,89387.0,89370.0,0.69715345]
[1765985806753,0.12552839,89387.0,89360.0,0.69715345]
[1765985806959,0.12552839,89387.0,89351.0,0.01808]
[1765985806960,0.01118843,89378.0,89351.0,0.01808]
[1765985807161,0.4028,89375.0,89351.0,0.01808]
[1765985807340,0.4028,89404.0,89373.0,0.2907]
[1765985807543,0.41398518,89404.0,89381.0,0.2907]
[1765985807765,0.11434109,89412.0,89392.0,0.01118668]
[1765985807973,0.01808,89422.0,89401.0,0.01118555]
[1765985808171,0.11434109,89419.0,89404.0,0.2907]
[1765985808374,0.11434109,89419.0,89395.0,0.2907]
[1765985808375,0.11595109,89419.0,89395.0,0.2907]
[1765985808584,0.2348783,89408.0,89376.0,0.49184]
[1765985808784,0.01808,89407.0,89385.0,0.01118755]
[1765985808989,0.001,89412.0,89402.0,0.01118543]
[1765985809254,0.11434109,89427.0,89403.0,0.09320492]
[1765985809384,0.11595109,89427.0,89403.0,0.09320492]
[1765985809585,0.001,89419.0,89403.0,0.09320492]
[1765985809797,0.00099,89464.0,89410.0,0.49184]
[1765985810174,0.00161,89465.0,89433.0,0.49184]
[1765985810378,0.01812,89473.0,89446.0,0.01117992]
[1765985810545,0.01812,89473.0,89445.0,0.01118005]
[1765985810546,0.01973,89473.0,89445.0,0.01118005]
[1765985810765,0.01973,89473.0,89434.0,0.03007803]
[1765985810766,0.01117793,89462.0,89434.0,0.03007803]
[1765985810972,0.00161,89462.0,89441.0,0.01118055]
[1765985811157,0.02762,89495.0,89460.0,0.69715345]
[1765985811358,0.02923,89495.0,89460.0,0.69715345]
[1765985811557,0.01117405,89493.0,89462.0,0.01117793]